bitfinex/quotes_BTCUSD_20250829
["timestamp","ask_amount","ask_price","bid_price","bid_amount"]
[1756459129731,1.22060883,109900.0,109890.0,0.2732965]
[1756459129940,1.22060883,109900.0,109890.0,0.2733365]
[1756459130284,1.23938295,109900.0,109890.0,0.00304]
[1756459130494,1.5765109,109900.0,109890.0,0.00304]
[1756459130900,1.2365109,109900.0,109890.0,0.00304]
[1756459131130,1.2638769,109900.0,109890.0,0.00304]
[1756459131324,1.35217322,109900.0,109890.0,0.00304]
[1756459131621,1.69217322,109900.0,109890.0,0.00304]
[1756459131792,1.71168946,109900.0,109890.0,0.00304]
[1756459132326,1.87136946,109900.0,109890.0,0.00304]
[1756459132472,1.87136946,109900.0,109890.0,4e-05]
[1756459132872,1.87332946,109900.0,109890.0,4e-05]
[1756459133302,1.87228946,109900.0,109890.0,4e-05]
[1756459133507,1.87128946,109900.0,109890.0,4e-05]
[1756459133872,1.87228946,109900.0,109890.0,4e-05]
[1756459134067,1.96058578,109900.0,109890.0,4e-05]
[1756459134295,1.94106954,109900.0,109890.0,4e-05]
[1756459134732,1.78246954,109900.0,109890.0,4e-05]
[1756459135345,1.94194954,109900.0,109890.0,4e-05]
[1756459136764,1.94191873,109900.0,109890.0,4e-05]
[1756459136963,1.78243873,109900.0,109890.0,4e-05]
[1756459137164,0.74381357,109900.0,109890.0,4e-05]
[1756459137482,1.94195878,109900.0,109890.0,4e-05]
[1756459137623,1.69414246,109900.0,109890.0,4e-05]
[1756459137854,1.85325246,109900.0,109890.0,4e-05]
[1756459138255,1.85366246,109900.0,109890.0,4e-05]
[1756459138457,1.85325246,109900.0,109890.0,4e-05]
[1756459138662,1.85329246,109900.0,109890.0,4e-05]
[1756459139374,0.81466725,109900.0,109890.0,4e-05]
[1756459139581,1.85329246,109900.0,109890.0,4e-05]
[1756459139762,1.69373246,109900.0,109890.0,4e-05]
[1756459139965,1.87020697,109900.0,109890.0,4e-05]
[1756459140917,1.87016697,109900.0,109890.0,4e-05]
[1756459141216,1.87012697,109900.0,109890.0,4e-05]
[1756459142923,1.78179065,109900.0,109890.0,4e-05]
[1756459144626,0.74308544,109900.0,109890.0,4e-05]
[1756459144827,1.78171065,109900.0,109890.0,4e-05]
[1756459145028,1.78167065,109900.0,109890.0,4e-05]
[1756459145734,0.40304544,109900.0,109890.0,0.00302]
[1756459145952,0.39604194,109900.0,109890.0,0.0051]
[1756459146163,0.37911967,109900.0,109890.0,0.07573082]
[1756459146366,0.39601978,109900.0,109890.0,0.07573082]
[1756459147129,1.43530499,109900.0,109890.0,0.07573082]
[1756459147416,1.44164288,109900.0,109890.0,0.07573082]
[1756459148370,1.28232288,109900.0,109890.0,0.07573082]
[1756459148569,1.44152288,109900.0,109890.0,0.07573082]
[1756459149965,1.28232288,109900.0,109890.0,0.07573082]
[1756459150162,1.44148288,109900.0,109890.0,0.07573082]
[1756459151132,0.40285767,109900.0,109890.0,0.07573082]
[1756459151303,1.44082288,109900.0,109890.0,0.07573082]
[1756459151508,1.44148288,109900.0,109890.0,0.07573082]
[1756459151712,1.44136288,109900.0,109890.0,0.07573082]
[1756459152167,1.44070288,109900.0,109890.0,0.07573082]
[1756459152351,1.44136288,109900.0,109890.0,0.07067082]
[1756459152555,1.44136288,109900.0,109890.0,0.07365082]
[1756459152939,1.44136288,109900.0,109890.0,0.07573082]
[1756459153177,1.41812488,109900.0,109890.0,0.07573082]
[1756459153408,1.44137868,109900.0,109890.0,0.07573082]
[1756459153769,1.44137868,109900.0,109890.0,0.07365082]
[1756459154214,0.40275347,109900.0,109890.0,0.07573082]
[1756459154444,0.40209347,109900.0,109890.0,0.07573082]
[1756459154644,1.44071868,109900.0,109890.0,0.07573082]
[1756459154859,0.40189347,109900.0,109890.0,0.257731]
[1756459155070,0.39555153,109900.0,109890.0,0.07573082]
[1756459155266,1.43417674,109900.0,109890.0,0.07573082]
[1756459156262,0.39555153,109900.0,109890.0,0.07573082]
[1756459156689,0.37018962,109900.0,109890.0,0.07573082]
[1756459156908,0.39557738,109900.0,109890.0,0.07573082]
[1756459157344,0.23673738,109900.0,109890.0,0.257731]
[1756459157566,0.39565738,109900.0,109890.0,0.07573082]
[1756459157776,0.39565738,109900.0,109890.0,0.257731]
[1756459158446,0.39565738,109900.0,109890.0,0.07573082]
[1756459159113,0.23673738,109900.0,109890.0,0.257731]
[1756459159348,0.23573738,109900.0,109890.0,1.38465253]
[1756459159587,0.36717138,109900.0,109890.0,1.38465253]
[1756459159805,0.20837138,109900.0,109890.0,1.38465253]
[1756459160029,0.36713138,109900.0,109890.0,1.38465253]
[1756459160248,0.36613138,109900.0,109890.0,1.38465253]
[1756459160919,0.02538776,109900.0,109890.0,1.38465253]
[1756459161132,0.16714259,109900.0,109890.0,1.38465253]
[1756459161337,0.19044621,109900.0,109890.0,0.34602732]
[1756459161557,0.00846259,109900.0,109890.0,1.38465253]
[1756459161767,0.00846259,109900.0,109890.0,1.38565253]
[1756459162853,0.16714259,109900.0,109890.0,1.38565253]
[1756459163064,0.16714259,109900.0,109890.0,1.38765253]
[1756459163307,0.16730259,109900.0,109890.0,0.34902732]
[1756459163542,0.34928621,109900.0,109890.0,0.16702714]
[1756459163751,0.34928621,109900.0,109890.0,0.2783965]
[1756459164177,0.34928621,109900.0,109890.0,0.09639632]
[1756459164378,0.34928621,109900.0,109890.0,0.2783965]
[1756459167570,0.34928083,109900.0,109890.0,0.2783965]
[1756459168361,0.16729721,109900.0,109890.0,0.2783965]
[1756459168559,0.16846977,109900.0,109890.0,0.2783965]
[1756459168783,0.35045339,109900.0,109890.0,0.2783965]
[1756459168956,0.34928083,109900.0,109890.0,0.2783965]
[1756459172789,0.19044083,109900.0,109890.0,0.2783965]
[1756459173000,0.16705721,109900.0,109890.0,0.2783965]
[1756459173197,0.35021339,109900.0,109890.0,0.2783965]
[1756459173401,0.34904083,109900.0,109890.0,0.2783965]
[1756459174008,0.16705721,109900.0,109890.0,0.2783965]
[1756459174261,0.16822977,109900.0,109890.0,0.2783965]
[1756459174769,0.00962977,109900.0,109890.0,0.34902732]
[1756459174971,0.3416211,109910.0,109900.0,0.18198362]
[1756459175179,0.37626859,109910.0,109900.0,0.27243994]
[1756459175386,0.34890959,109910.0,109900.0,0.27558994]
[1756459175809,0.37626859,109910.0,109900.0,0.09360632]
[1756459176013,0.37692859,109910.0,109900.0,0.09360632]
[1756459176244,0.37692859,109910.0,109900.0,0.27558994]
[1756459176450,1.4155538,109910.0,109900.0,0.09360632]
[1756459176860,1.4155538,109910.0,109900.0,0.09144632]
[1756459177268,1.4155538,109910.0,109900.0,0.27342994]
[1756459177653,1.4155538,109910.0,109900.0,0.09144632]
[1756459178382,1.41555286,109910.0,109900.0,0.09144632]
[1756459178624,1.41555286,109910.0,109900.0,0.27342994]
[1756459179226,1.41555286,109910.0,109900.0,0.27558994]
[1756459180486,0.37626765,109910.0,109900.0,0.27558994]
[1756459180697,1.41489286,109910.0,109900.0,0.27558994]
[1756459181665,1.4318161,109910.0,109900.0,0.27558994]
[1756459182066,0.00846011,109910.0,109900.0,0.27558994]
[1756459182722,0.00846011,109910.0,109900.0,1.31421515]
[1756459183297,0.03783179,109920.0,109910.0,0.18196706]
[1756459183632,0.04629438,109920.0,109910.0,0.43441338]
[1756459183844,0.00886259,109920.0,109910.0,0.5050442]
[1756459184217,0.00886259,109920.0,109910.0,0.43633338]
[1756459184415,0.00886259,109920.0,109910.0,0.43638131]
[1756459184949,0.00886259,109920.0,109910.0,0.27562131]
[1756459185169,0.00886259,109920.0,109910.0,0.43750131]
[1756459185594,0.00886259,109920.0,109910.0,0.43958131]
[1756459186279,0.00886259,109920.0,109910.0,0.43858131]
[1756459186692,0.00886259,109920.0,109910.0,0.43958131]
[1756459186892,0.00886259,109920.0,109910.0,0.48060171]
[1756459187546,0.00886259,109920.0,109910.0,0.48044171]
[1756459188959,0.00885753,109920.0,109910.0,0.48044171]
[1756459190369,0.00885753,109920.0,109910.0,0.55107253]
[1756459190571,0.00885753,109920.0,109910.0,0.39027253]
[1756459190775,0.00885753,109920.0,109910.0,0.55087253]
[1756459191718,0.00885753,109920.0,109910.0,0.31964171]
[1756459191926,0.00885753,109920.0,109910.0,0.48024171]
[1756459194245,0.00885839,109920.0,109910.0,0.48024171]
[1756459195958,0.00885839,109920.0,109910.0,1.51886692]
[1756459196159,0.0004,109920.0,109910.0,1.51886692]
[1756459196361,0.0004,109920.0,109910.0,1.51890692]
[1756459198875,0.0004,109920.0,109910.0,0.31968171]
[1756459199262,0.0004,109920.0,109910.0,0.48004171]
[1756459199461,1.23008967,109920.0,109910.0,0.48004171]
[1756459199886,0.19146461,109920.0,109910.0,0.48004171]
[1756459200114,0.00951411,109920.0,109910.0,0.31968171]
[1756459200311,0.19263717,109920.0,109910.0,0.09138425]
[1756459200523,1.2432755,109920.0,109910.0,0.00308793]
[1756459200715,1.23049982,109920.0,109910.0,0.00308793]
[1756459200914,0.19146461,109920.0,109910.0,0.00308793]
[1756459201141,1.23008982,109920.0,109910.0,0.00308793]
[1756459201550,0.19080461,109920.0,109910.0,0.19019499]
[1756459201748,0.00885411,109920.0,109910.0,0.27849131]
[1756459201992,0.19080461,109920.0,109910.0,0.27849131]
[1756459202172,0.00885411,109920.0,109910.0,0.27849131]
[1756459202601,0.00885411,109920.0,109910.0,0.34912213]
[1756459202953,0.34857664,109930.0,109920.0,0.1819505]
[1756459203166,0.01703753,109930.0,109920.0,0.43562682]
[1756459203365,0.00846089,109930.0,109920.0,0.43562682]
[1756459204310,0.19039484,109930.0,109920.0,0.43574682]
[1756459204486,0.19105484,109930.0,109920.0,0.43362682]
[1756459204688,0.19105484,109930.0,109920.0,0.43570682]
[1756459204930,0.00912089,109930.0,109920.0,0.43570682]
[1756459205274,0.19105484,109930.0,109920.0,0.43570682]
[1756459205531,0.00912089,109930.0,109920.0,0.43570682]
[1756459205756,0.00846089,109930.0,109920.0,0.43570682]
[1756459207286,0.00846089,109930.0,109920.0,1.54629203]
[1756459208150,0.00846089,109930.0,109920.0,0.34734682]
[1756459208340,0.00846089,109930.0,109920.0,0.50782682]
[1756459208941,0.00846089,109930.0,109920.0,0.50882682]
[1756459209149,0.00846089,109930.0,109920.0,0.50878682]
[1756459209357,0.00157256,109940.0,109930.0,0.18193395]
[1756459209587,0.00157256,109940.0,109930.0,0.27329027]
[1756459209783,0.00157256,109940.0,109930.0,0.27537027]
[1756459210190,0.0004,109940.0,109930.0,0.27537027]
[1756459211806,0.0004,109940.0,109930.0,0.43593027]
[1756459212331,0.1823174,109940.0,109930.0,0.43593027]
[1756459212539,0.0004,109940.0,109930.0,0.43593027]
[1756459213529,0.0004,109940.0,109930.0,0.43793027]
[1756459213951,0.0004,109940.0,109930.0,0.43781027]
[1756459214602,0.1823174,109940.0,109930.0,0.43781027]
[1756459214812,0.0004,109940.0,109930.0,0.43881027]
[1756459215031,0.00886781,109940.0,109930.0,0.43881027]
[1756459215476,0.00886781,109940.0,109930.0,0.43781027]
[1756459215929,0.00886781,109940.0,109930.0,0.43881027]
[1756459216671,1.03862521,109950.0,109930.0,0.43873027]
[1756459216900,0.18190284,109950.0,109940.0,0.43057372]
[1756459217128,1.22118805,109950.0,109940.0,0.43057372]
[1756459217349,1.22118805,109950.0,109940.0,0.43363372]
[1756459217772,1.22118805,109950.0,109940.0,0.24865632]
[1756459217987,1.22118805,109950.0,109940.0,0.43057372]
[1756459218209,1.24815291,109950.0,109940.0,0.43057372]
[1756459218659,1.24815291,109950.0,109940.0,0.24865632]
[1756459218876,1.24815291,109950.0,109940.0,0.43057372]
[1756459219306,1.24815291,109950.0,109940.0,0.43379372]
[1756459219519,0.2095277,109950.0,109940.0,0.43379372]
[1756459219730,1.24815291,109950.0,109940.0,0.43379372]
[1756459220132,0.74815291,109950.0,109940.0,0.43379372]
[1756459220378,0.93005575,109950.0,109940.0,0.43379372]
[1756459220582,0.02681381,109950.0,109940.0,0.43574372]
[1756459220833,0.18190086,109950.0,109940.0,0.43574372]
[1756459221040,1.59698022,109960.0,109950.0,0.18190086]
[1756459221243,1.59291698,109960.0,109950.0,0.27019718]
[1756459221438,1.27482878,109960.0,109940.0,0.00322]
[1756459221609,1.22169863,109950.0,109940.0,0.25159632]
[1756459221838,1.24761771,109950.0,109940.0,0.24833632]
[1756459222060,1.24761771,109950.0,109940.0,0.43025372]
[1756459222254,1.24761771,109950.0,109940.0,0.43030165]
[1756459222502,1.24761771,109950.0,109940.0,0.09156425]
[1756459222639,1.24761771,109950.0,109940.0,0.43348165]
[1756459223268,0.2089925,109950.0,109940.0,0.43348165]
[1756459224217,1.24761771,109950.0,109940.0,0.16000793]
[1756459224433,1.26455412,109950.0,109940.0,0.16000793]
[1756459226097,1.26455412,109950.0,109940.0,0.16008793]
[1756459226298,1.27090631,109950.0,109940.0,0.16008793]
[1756459226480,1.29825831,109950.0,109940.0,0.16008793]
[1756459228081,1.29825831,109950.0,109940.0,0.16330793]
[1756459228333,1.29190612,109950.0,109940.0,0.16525793]
[1756459228549,0.26175205,109950.0,109940.0,0.16525793]
[1756459228771,1.30037726,109950.0,109940.0,0.16525793]
[1756459228980,1.30037726,109950.0,109940.0,0.16330793]
[1756459229250,0.26175205,109950.0,109940.0,0.16330793]
[1756459230105,0.23440005,109950.0,109940.0,1.47409686]
[1756459230511,0.21746438,109950.0,109940.0,1.47409686]
[1756459230728,0.23440815,109950.0,109940.0,0.43547165]
[1756459233209,0.05886823,109950.0,109940.0,1.47409686]
[1756459233421,0.05250729,109950.0,109940.0,1.47409686]
[1756459233837,0.05250729,109950.0,109940.0,0.43547165]
[1756459234026,0.05250729,109950.0,109940.0,1.47409686]
[1756459234236,0.21016506,109950.0,109940.0,0.27543165]
[1756459234464,0.23443797,109950.0,109940.0,0.43495165]
[1756459234681,0.23443797,109950.0,109940.0,0.43595165]
[1756459235095,0.23443797,109950.0,109940.0,0.43495165]
[1756459236146,0.24079962,109950.0,109940.0,0.43695165]
[1756459236318,0.05253711,109950.0,109940.0,1.47557686]
[1756459236949,0.23443797,109950.0,109940.0,1.47557686]
[1756459237178,0.00848182,109950.0,109940.0,1.47557686]
[1756459237331,0.00848182,109950.0,109940.0,1.47657686]
[1756459237959,0.00848182,109950.0,109940.0,1.31705686]
[1756459238166,0.00848182,109950.0,109940.0,1.51676736]
[1756459240045,0.00848182,109950.0,109940.0,1.51672736]
[1756459240484,0.20868805,109960.0,109950.0,0.18190086]
[1756459240677,0.21715974,109960.0,109950.0,0.27536718]
[1756459240890,0.03527473,109960.0,109950.0,0.27536718]
[1756459241112,0.03644729,109960.0,109950.0,0.27536718]
[1756459241543,0.03644693,109960.0,109950.0,0.27536718]
[1756459243455,0.00964389,109960.0,109950.0,0.27536718]
[1756459245990,0.00964389,109960.0,109950.0,0.27736718]
[1756459246957,0.00964389,109960.0,109950.0,0.27836718]
[1756459247770,0.19152821,109960.0,109950.0,0.43724718]
[1756459247975,0.19035565,109960.0,109950.0,0.43724718]
[1756459248659,0.19035565,109960.0,109950.0,0.27736718]
[1756459248866,0.19035565,109960.0,109950.0,0.43229718]
[1756459249074,1.22898086,109960.0,109950.0,0.25039632]
[1756459249278,0.18190086,109950.0,109940.0,0.18196533]
[1756459249478,1.22050953,109960.0,109940.0,0.43433165]
[1756459249682,0.00117256,109950.0,109940.0,0.43433165]
[1756459250202,0.00963844,109950.0,109940.0,0.43433165]
[1756459251049,0.00963737,109950.0,109940.0,0.43433165]
[1756459251443,0.00963737,109950.0,109940.0,0.43533165]
[1756459252057,0.009638,109950.0,109940.0,0.43533165]
[1756459252870,0.009638,109950.0,109940.0,0.43733165]
[1756459254354,0.00963803,109950.0,109940.0,0.43733165]
[1756459255014,0.00846547,109950.0,109940.0,1.47595686]
[1756459256786,0.00846547,109950.0,109940.0,0.43733165]
[1756459256974,0.00846547,109950.0,109940.0,1.47595686]
[1756459257574,0.59611675,109970.0,109960.0,0.18188432]
[1756459257770,0.62786871,109970.0,109960.0,0.34056432]
[1756459258379,0.62786871,109970.0,109960.0,0.15868]
[1756459258853,0.62886871,109970.0,109960.0,0.15868]
[1756459259052,0.62986871,109970.0,109960.0,0.15868]
[1756459259279,1.66849392,109970.0,109960.0,0.15868]
[1756459259861,1.66849392,109970.0,109950.0,0.18510585]
[1756459260062,0.18305688,109960.0,109950.0,0.43208217]
[1756459260219,0.20728589,109960.0,109950.0,0.09151632]
[1756459260419,0.20728589,109960.0,109950.0,0.34380086]
[1756459261659,0.20730152,109960.0,109950.0,0.34380086]
[1756459261862,0.20733477,109960.0,109950.0,0.34380086]
[1756459262149,0.20733477,109960.0,109950.0,0.34580086]
[1756459262794,0.20733477,109960.0,109950.0,0.1639]
[1756459262996,0.20733477,109960.0,109950.0,0.34380086]
[1756459263610,0.18190086,109950.0,109940.0,0.1942812]
[1756459263821,0.19038434,109950.0,109940.0,0.44326752]
[1756459264024,0.00848348,109950.0,109940.0,0.44326752]
[1756459264232,0.00117256,109950.0,109940.0,0.44326752]
[1756459264617,0.00848348,109950.0,109940.0,0.44326752]
[1756459264820,1.22899301,109960.0,109940.0,0.44426752]
[1756459265026,0.00067256,109950.0,109940.0,0.44426752]
[1756459265223,0.00915604,109950.0,109940.0,0.44626752]
[1756459266033,0.00848348,109950.0,109940.0,1.48489273]
[1756459266208,0.19037534,109960.0,109950.0,0.18190086]
[1756459266455,0.02547312,109960.0,109950.0,0.18713086]
[1756459266665,0.20803,109960.0,109950.0,0.18713086]
[1756459266866,0.20735744,109960.0,109950.0,0.18713086]
[1756459267164,0.02547312,109960.0,109950.0,0.27542718]
[1756459267316,0.02614568,109960.0,109950.0,0.27542718]
[1756459267938,0.20803,109960.0,109950.0,0.27542718]
[1756459268135,1.24598265,109960.0,109940.0,0.46345908]
[1756459268530,1.24598265,109960.0,109950.0,0.18512086]
[1756459268782,0.20735744,109960.0,109950.0,0.18713086]
[1756459269228,0.20735744,109960.0,109950.0,0.00523]
[1756459269403,0.20735744,109960.0,109950.0,0.34577086]
[1756459272033,0.20735744,109960.0,109950.0,0.34777086]
[1756459272529,0.20736456,109960.0,109950.0,0.34777086]
[1756459272913,0.20736456,109960.0,109950.0,0.34877086]
[1756459273342,0.2073648,109960.0,109950.0,0.34877086]
[1756459275376,0.2073648,109960.0,109950.0,0.43706718]
[1756459275583,0.2073648,109960.0,109950.0,0.43606718]
[1756459276434,0.02548048,109960.0,109950.0,0.43606718]
[1756459276641,0.2073648,109960.0,109950.0,0.43606718]
[1756459276988,0.02548048,109960.0,109950.0,0.43706718]
[1756459277742,0.05282748,109960.0,109950.0,0.43706718]
[1756459277946,0.2347118,109960.0,109950.0,0.27842718]
[1756459278155,0.2347118,109960.0,109950.0,0.43706718]
[1756459280830,0.05282748,109960.0,109950.0,0.43706718]
[1756459281087,0.05350004,109960.0,109950.0,0.43706718]
[1756459281525,0.05282748,109960.0,109950.0,0.43706718]
[1756459282777,0.05350004,109960.0,109950.0,0.43706718]
[1756459282989,0.23538436,109960.0,109950.0,0.43706718]
[1756459283206,0.23471673,109960.0,109950.0,0.43706718]
[1756459283427,0.2347272,109960.0,109950.0,0.43706718]
[1756459284067,0.2347272,109960.0,109950.0,0.43606718]
[1756459284853,0.05284288,109960.0,109950.0,0.43606718]
[1756459285907,0.02549588,109960.0,109950.0,1.47569239]
[1756459286939,0.00849858,109960.0,109950.0,1.47569239]
[1756459287366,0.00849858,109960.0,109950.0,1.51264365]
[1756459288159,0.0004,109970.0,109960.0,0.18188432]
[1756459288360,0.0004,109970.0,109960.0,1.30880585]
[1756459288522,0.01738529,109970.0,109960.0,0.27546064]
[1756459288910,0.02587793,109970.0,109960.0,1.31408585]
[1756459289176,0.00889264,109970.0,109960.0,1.31408585]
[1756459289386,0.00889264,109970.0,109960.0,1.38404585]
[1756459289772,0.0004,109970.0,109960.0,0.34542064]
[1756459289984,0.0004,109970.0,109960.0,2.49330188]
[1756459290198,0.0004,109970.0,109960.0,0.57465146]
[1756459290414,0.0004,109970.0,109960.0,2.65190188]
[1756459290626,0.0004,109970.0,109960.0,2.65554688]
[1756459290838,0.0004,109970.0,109960.0,2.65654688]
[1756459291486,0.0004,109970.0,109960.0,2.65554688]
[1756459291707,0.0004,109970.0,109960.0,2.99554688]
[1756459291915,0.0004,109970.0,109960.0,2.99854688]
[1756459292596,0.0004,109970.0,109960.0,3.00154688]
[1756459292808,0.0004,109970.0,109960.0,2.84294688]
[1756459293038,0.00031806,109980.0,109970.0,1.22049299]
[1756459293240,0.22707812,110000.0,109990.0,0.18183471]
[1756459293443,0.22707812,110000.0,109990.0,0.34039471]
[1756459293444,0.2524959,110000.0,109990.0,0.34039471]
[1756459293649,0.07067772,110000.0,109990.0,0.34567471]
[1756459293857,0.07135104,110000.0,109990.0,0.34567471]
[1756459294287,0.05440434,110000.0,109990.0,0.34567471]
[1756459294488,0.05488157,110000.0,109990.0,0.34567471]
[1756459294898,0.05420901,110000.0,109990.0,1.47259624]
[1756459295321,0.05488157,110000.0,109990.0,1.47259624]
[1756459295536,0.05588157,110000.0,109990.0,1.47259624]
[1756459295738,0.03728773,110000.0,109990.0,1.47259624]
[1756459296172,0.03728773,110000.0,109990.0,1.47263624]
[1756459296358,0.03728773,110000.0,109990.0,0.43401103]
[1756459296595,0.03728773,110000.0,109990.0,1.31407624]
[1756459296806,0.03796029,110000.0,109990.0,0.43401103]
[1756459297367,0.03795188,110000.0,109990.0,0.43401103]
[1756459298183,0.21977006,110000.0,109990.0,0.27332103]
[1756459298364,0.2180975,110000.0,109990.0,0.24689632]
[1756459298582,0.25591929,110000.0,109990.0,0.43188103]
[1756459298767,0.07410111,110000.0,109990.0,0.43188103]
[1756459298986,0.25559185,110000.0,109990.0,0.43188103]
[1756459299199,0.07310111,110000.0,109990.0,0.27645103]
[1756459299443,0.07377367,110000.0,109990.0,0.43501103]
[1756459299838,0.07377367,110000.0,109990.0,0.43601103]
[1756459300152,0.07377367,110000.0,109990.0,0.43597103]
[1756459300858,0.07376957,110000.0,109990.0,0.43597103]
[1756459302792,0.07376957,110000.0,109990.0,0.27745103]
[1756459302996,0.07376957,110000.0,109990.0,0.43597103]
[1756459304461,0.07376904,110000.0,109990.0,0.43597103]
[1756459304639,0.073769,110000.0,109990.0,0.43597103]
[1756459305488,0.03694721,110000.0,109990.0,0.43597103]
[1756459305700,0.03694721,110000.0,109990.0,1.47459624]
[1756459305909,0.03694721,110000.0,109990.0,0.43597103]
[1756459306126,0.03694721,110000.0,109990.0,1.47459624]
[1756459306922,0.03694721,110000.0,109990.0,0.43597103]
[1756459307137,0.05386905,110000.0,109990.0,1.47459624]
[1756459308478,0.03694721,110000.0,109990.0,1.47459624]
[1756459309247,0.05387454,110000.0,109990.0,1.47459624]
[1756459309447,0.05320198,110000.0,109990.0,1.47459624]
[1756459309624,0.00893665,110000.0,109990.0,1.47459624]
[1756459310071,0.00893665,110000.0,109990.0,1.54451624]
[1756459311139,0.00893665,110000.0,109990.0,0.50589103]
[1756459311416,0.00047723,110000.0,109990.0,1.88451624]
[1756459311622,0.00047723,110000.0,109990.0,1.91184424]
[1756459312064,0.00107256,110030.0,109990.0,1.91184424]
[1756459312283,0.02540302,110030.0,110020.0,0.18178512]
[1756459312491,0.02540302,110030.0,110020.0,0.43161144]
[1756459312711,0.23449962,110030.0,110020.0,0.27317144]
[1756459312927,0.23449962,110030.0,110020.0,0.43161144]
[1756459314155,0.23449962,110030.0,110020.0,0.43375144]
[1756459314370,0.27185711,110030.0,110020.0,0.43375144]
[1756459314591,0.27185711,110030.0,110020.0,0.43161144]
[1756459314807,0.27185711,110030.0,110020.0,0.24673632]
[1756459315234,0.27386267,110030.0,110020.0,0.24673632]
[1756459315419,0.27387037,110030.0,110020.0,0.24673632]
[1756459315625,0.27187037,110030.0,110020.0,0.24673632]
[1756459315786,0.27287037,110030.0,110020.0,0.24673632]
[1756459316944,0.27287037,110030.0,110020.0,0.08833632]
[1756459317148,0.27287037,110030.0,110020.0,0.43165144]
[1756459317350,0.27287037,110030.0,110020.0,0.24986632]
[1756459317524,0.27287037,110030.0,110020.0,0.43165144]
[1756459318341,0.27287037,110030.0,110020.0,0.43379144]
[1756459319803,0.27287037,110030.0,110020.0,0.24982632]
[1756459320010,0.27287037,110030.0,110020.0,0.43161144]
[1756459320262,0.27287037,110030.0,110020.0,0.24982632]
[1756459320469,1.31149558,110030.0,110020.0,0.15844]
[1756459321903,0.27287037,110030.0,110020.0,0.15844]
[1756459322317,1.31149558,110030.0,110020.0,0.14364282]
[1756459322727,0.18178512,110020.0,110010.0,0.18489086]
[1756459322951,0.2072014,110020.0,110010.0,0.43372718]
[1756459323157,0.2072014,110020.0,110010.0,0.27532718]
[1756459323372,0.2072014,110020.0,110010.0,0.16149]
[1756459323602,0.2345334,110020.0,110010.0,0.16149]
[1756459324272,0.2345334,110020.0,110010.0,0.34543165]
[1756459324719,0.22606017,110020.0,110010.0,0.16149]
[1756459324944,0.23456684,110020.0,110010.0,0.16149]
[1756459325193,0.18180165,110010.0,110000.0,0.255579]
[1756459325411,0.20725137,110010.0,110000.0,0.50441532]
[1756459325641,0.20725137,110010.0,110000.0,0.22903082]
[1756459325864,1.32121041,110010.0,110000.0,4e-05]
[1756459326510,1.27957356,110010.0,110000.0,0.00104]
[1756459326715,1.27957356,110010.0,110000.0,0.00204]
[1756459327338,1.43793356,110010.0,110000.0,0.00204]
[1756459328387,1.27957356,110010.0,110000.0,0.00204]
[1756459328792,0.24094835,110010.0,110000.0,0.00204]
[1756459329549,1.27957356,110010.0,110000.0,0.1604]
[1756459329733,1.35601373,110010.0,110000.0,0.1604]
[1756459329968,1.27957356,110010.0,110000.0,0.1604]
[1756459330442,1.27957356,110010.0,110000.0,0.00204]
[1756459331479,1.61957356,110010.0,110000.0,0.00204]
[1756459331657,1.63910969,110010.0,110000.0,0.00204]
[1756459331895,1.56044339,110000.0,109990.0,8.793e-05]
[1756459332106,1.77015022,110000.0,109990.0,8.793e-05]
[1756459332318,1.22045992,109990.0,109980.0,0.07124734]
[1756459332547,1.59227062,109990.0,109980.0,0.00109375]
[1756459332768,1.70009398,109990.0,109980.0,0.00109375]
[1756459333211,6.75190053,109990.0,109980.0,0.00109375]
[1756459333433,6.84019685,109990.0,109980.0,0.00109375]
[1756459333641,6.87265752,109990.0,109980.0,0.00109375]
[1756459333850,6.84819797,109990.0,109980.0,0.00109375]
[1756459334059,1.22047645,109980.0,109970.0,4e-05]
[1756459334293,6.51847051,109980.0,109970.0,4e-05]
[1756459334504,1.60676683,109980.0,109970.0,4e-05]
[1756459334932,1.44840683,109980.0,109970.0,4e-05]
[1756459335171,1.60680683,109980.0,109970.0,4e-05]
[1756459335424,1.60044585,109980.0,109970.0,4e-05]
[1756459335631,1.60869472,109980.0,109970.0,4e-05]
[1756459336053,1.58333589,109980.0,109970.0,4e-05]
[1756459336279,1.60869495,109980.0,109970.0,4e-05]
[1756459337620,0.57006974,109980.0,109970.0,4e-05]
[1756459337842,0.41166974,109980.0,109970.0,4e-05]
[1756459338073,1.60869495,109980.0,109970.0,4e-05]
[1756459340289,1.58916791,109980.0,109970.0,4e-05]
[1756459340702,0.30384638,109980.0,109970.0,0.00527]
[1756459340852,1.50087159,109980.0,109970.0,0.0032]
[1756459341052,1.50087159,109980.0,109970.0,4e-05]
[1756459342092,1.52029428,109980.0,109970.0,4e-05]
[1756459342294,1.60858756,109980.0,109970.0,4e-05]
[1756459345291,1.45018756,109980.0,109970.0,4e-05]
[1756459345477,1.60858756,109980.0,109970.0,4e-05]
[1756459345886,1.63593756,109980.0,109970.0,4e-05]
[1756459346080,1.61903152,109980.0,109970.0,4e-05]
[1756459346284,1.63585136,109980.0,109970.0,4e-05]
[1756459346502,1.61643171,109980.0,109970.0,4e-05]
[1756459346853,1.52181346,109980.0,109970.0,0.00527]
[1756459347258,0.39489193,109980.0,109970.0,0.07590082]
[1756459347500,0.73489193,109980.0,109970.0,0.07590082]
[1756459347708,1.77351714,109980.0,109970.0,0.07590082]
[1756459349248,0.57649193,109980.0,109970.0,0.07590082]
[1756459349513,0.73489193,109980.0,109970.0,0.07590082]
[1756459349938,0.57649193,109980.0,109970.0,0.2577686]
[1756459350145,0.73489193,109980.0,109970.0,0.2577686]
[1756459350374,0.73489193,109980.0,109970.0,0.07590082]
[1756459350827,1.77351714,109980.0,109970.0,0.00527]
[1756459351047,1.86181346,109980.0,109970.0,0.00527]
[1756459351661,1.77351714,109980.0,109970.0,0.00527]
[1756459352451,1.77353909,109980.0,109970.0,0.00527]
[1756459354274,1.61513909,109980.0,109970.0,0.00527]
[1756459354479,0.73491388,109980.0,109970.0,0.00527]
[1756459354684,1.77353909,109980.0,109970.0,0.00527]
[1756459355152,1.77988844,109980.0,109970.0,0.00527]
[1756459356121,0.18186778,109970.0,109960.0,0.1819233]
[1756459356332,0.02531264,109970.0,109960.0,0.27228962]
[1756459356937,1.58982645,109980.0,109970.0,0.18186778]
[1756459357167,1.62158614,109980.0,109970.0,0.18393778]
[1756459357367,1.61958614,109980.0,109970.0,0.18393778]
[1756459357624,1.77799296,109980.0,109970.0,0.18393778]
[1756459357863,1.61959296,109980.0,109970.0,0.18393778]
[1756459358071,0.73936775,109980.0,109970.0,0.18393778]
[1756459358272,0.02541457,109980.0,109970.0,1.38465013]
[1756459358522,0.02541457,109980.0,109970.0,0.50442492]
[1756459358708,0.02541457,109980.0,109970.0,1.54377013]
[1756459359016,0.02541457,109980.0,109970.0,1.54277013]
[1756459359224,0.02541457,109980.0,109970.0,0.50414492]
[1756459359381,0.02541457,109980.0,109970.0,1.54277013]